[Event "Early-Titled-Tuesday-Blitz-September-12-2023"]
[Site "Chess.com"]
[Date "2023.09.12"]
[Round "6"]
[White "1995Tiger"]
[Black "GMJustin"]
[Result "1-0"]
[WhiteElo "2150"]
[BlackElo "2244"]
[TimeControl "180+1"]
[EndTime "9:06:25 PDT"]
[Termination "1995Tiger won on time"]

1. e4 {[%clk 0:02:58.6]} 1... c5 {[%clk 0:02:54.4]} 2. Nf3 {[%clk 0:02:57.3]}
2... d6 {[%clk 0:02:53.5]} 3. c3 {[%clk 0:02:57.5]} 3... Nf6 {[%clk 0:02:52.6]}
4. Bd3 {[%clk 0:02:56.5]} 4... e6 {[%clk 0:02:45.2]} 5. Bc2 {[%clk 0:02:55]}
5... Be7 {[%clk 0:02:19.2]} 6. O-O {[%clk 0:02:51.2]} 6... c4 {[%clk 0:02:05.1]}
7. b3 {[%clk 0:02:48.9]} 7... cxb3 {[%clk 0:01:44.9]} 8. axb3 {[%clk 0:02:47.8]}
8... O-O {[%clk 0:01:44.8]} 9. d4 {[%clk 0:02:46.7]} 9... b5 {[%clk 0:01:32.1]}
10. Qd3 {[%clk 0:02:36.9]} 10... Bb7 {[%clk 0:01:19.6]} 11. Nbd2 {[%clk
0:02:18.5]} 11... a6 {[%clk 0:01:10.5]} 12. c4 {[%clk 0:02:11]} 12... Nc6 {[%clk
0:01:00.8]} 13. Ba3 {[%clk 0:02:05]} 13... d5 {[%clk 0:00:35.5]} 14. Bxe7 {[%clk
0:01:55.7]} 14... Qxe7 {[%clk 0:00:32]} 15. e5 {[%clk 0:01:50.9]} 15... Ne4
{[%clk 0:00:26.5]} 16. Nxe4 {[%clk 0:01:49.2]} 16... dxe4 {[%clk 0:00:23.3]} 17.
Qxe4 {[%clk 0:01:49.6]} 17... f5 {[%clk 0:00:15.5]} 18. exf6 {[%clk 0:01:48.4]}
18... gxf6 {[%clk 0:00:15.5]} 19. d5 {[%clk 0:01:35.3]} 19... exd5 {[%clk
0:00:09.2]} 20. Qxd5+ {[%clk 0:01:23.4]} 20... Kh8 {[%clk 0:00:09.2]} 21. Qh5
{[%clk 0:00:23.2]} 21... Nb4 {[%clk 0:00:08.3]} 22. Rfe1 {[%clk 0:00:20.1]}
22... Qg7 {[%clk 0:00:08.2]} 23. Bf5 {[%clk 0:00:18.5]} 23... Rg8 {[%clk
0:00:07.8]} 24. Nh4 {[%clk 0:00:17.3]} 24... Bxg2 {[%clk 0:00:06.3]} 25. Ng6+
{[%clk 0:00:16.8]} 25... Qxg6 {[%clk 0:00:04.3]} 26. Bxg6 {[%clk 0:00:17.2]}
26... Rxg6 {[%clk 0:00:04.2]} 27. Qxg6 {[%clk 0:00:16.7]} 27... hxg6 {[%clk
0:00:03.1]} 28. Kxg2 {[%clk 0:00:16]} 28... Nc2 {[%clk 0:00:03.1]} 29. cxb5
{[%clk 0:00:15.2]} 29... Nxe1+ {[%clk 0:00:03]} 30. Rxe1 {[%clk 0:00:13.6]}
30... axb5 {[%clk 0:00:03.5]} 31. Re6 {[%clk 0:00:14]} 31... Kg7 {[%clk
0:00:02.6]} 32. Rb6 {[%clk 0:00:14.6]} 32... Ra5 {[%clk 0:00:01.9]} 33. b4
{[%clk 0:00:14.4]} 33... Ra2 {[%clk 0:00:02.2]} 34. Rxb5 {[%clk 0:00:14.9]}
34... Rb2 {[%clk 0:00:02.5]} 35. Rb7+ {[%clk 0:00:14.5]} 35... Kh6 {[%clk
0:00:02]} 36. b5 {[%clk 0:00:14.9]} 36... f5 {[%clk 0:00:01.5]} 37. Rb8 {[%clk
0:00:14.8]} 37... Kg5 {[%clk 0:00:01.3]} 38. b6 {[%clk 0:00:15.2]} 38... Kf4
{[%clk 0:00:01.1]} 39. b7 {[%clk 0:00:15.7]} 39... g5 {[%clk 0:00:01]} 40. h3
{[%clk 0:00:15.9]} 1-0

[Event "Early-Titled-Tuesday-Blitz-September-12-2023"]
[Site "Chess.com"]
[Date "2023.09.12"]
[Round "6"]
[White "wonderfultime"]
[Black "turayev_shahruh17"]
[Result "1-0"]
[WhiteElo "2998"]
[BlackElo "2815"]
[TimeControl "180+1"]
[EndTime "9:06:27 PDT"]
[Termination "wonderfultime won by resignation"]

1. d4 {[%clk 0:03:00.9]} 1... Nf6 {[%clk 0:02:58.2]} 2. Nf3 {[%clk 0:03:01.5]}
2... d5 {[%clk 0:02:56.3]} 3. Bf4 {[%clk 0:03:02]} 3... c5 {[%clk 0:02:56]} 4.
c3 {[%clk 0:03:02]} 4... Nc6 {[%clk 0:02:56.3]} 5. e3 {[%clk 0:03:02.1]} 5...
Qb6 {[%clk 0:02:55.6]} 6. Qc2 {[%clk 0:03:02.1]} 6... g6 {[%clk 0:02:52.8]} 7.
Nbd2 {[%clk 0:03:01.7]} 7... Bf5 {[%clk 0:02:49.1]} 8. dxc5 {[%clk 0:03:01.9]}
8... Qxc5 {[%clk 0:02:50]} 9. Qb3 {[%clk 0:03:02.4]} 9... Na5 {[%clk 0:02:50.5]}
10. Qa4+ {[%clk 0:03:01.3]} 10... Bd7 {[%clk 0:02:50.6]} 11. Nb3 {[%clk
0:02:56.5]} 11... Nxb3 {[%clk 0:02:37.7]} 12. Qxb3 {[%clk 0:02:57.4]} 12... Bc6
{[%clk 0:02:32.3]} 13. Be2 {[%clk 0:02:56.1]} 13... Bg7 {[%clk 0:02:31.9]} 14.
O-O {[%clk 0:02:56.7]} 14... O-O {[%clk 0:02:31.9]} 15. Rfd1 {[%clk 0:02:57.4]}
15... Rfd8 {[%clk 0:02:14.9]} 16. h3 {[%clk 0:02:50]} 16... Ne4 {[%clk
0:02:09.7]} 17. Ne5 {[%clk 0:02:45.8]} 17... a5 {[%clk 0:01:58]} 18. a4 {[%clk
0:02:43.2]} 18... e6 {[%clk 0:01:42.3]} 19. Bf3 {[%clk 0:02:28]} 19... Nd6
{[%clk 0:01:32.2]} 20. Be2 {[%clk 0:02:27.3]} 20... Nc4 {[%clk 0:01:28.3]} 21.
Nxc4 {[%clk 0:02:17.7]} 21... dxc4 {[%clk 0:01:27.7]} 22. Bxc4 {[%clk
0:02:16.7]} 22... h5 {[%clk 0:00:52.6]} 23. Bf1 {[%clk 0:01:57.5]} 23... Bd5
{[%clk 0:00:48.3]} 24. Qc2 {[%clk 0:01:41.9]} 24... Bc4 {[%clk 0:00:47.5]} 25.
Rxd8+ {[%clk 0:01:26.1]} 25... Rxd8 {[%clk 0:00:46.7]} 26. Rd1 {[%clk 0:01:27]}
26... Rxd1 {[%clk 0:00:39.2]} 27. Qxd1 {[%clk 0:01:27.9]} 27... Bxf1 {[%clk
0:00:39.7]} 28. Qxf1 {[%clk 0:01:28.8]} 28... Qc6 {[%clk 0:00:37.9]} 29. Qb5
{[%clk 0:01:28.4]} 29... Qxb5 {[%clk 0:00:30.9]} 30. axb5 {[%clk 0:01:29.3]}
30... Kf8 {[%clk 0:00:31.8]} 31. e4 {[%clk 0:01:19.6]} 31... f5 {[%clk
0:00:23.4]} 32. f3 {[%clk 0:01:12.6]} 32... Ke8 {[%clk 0:00:22.3]} 33. Kf1
{[%clk 0:01:12.3]} 33... Kd7 {[%clk 0:00:21]} 34. Ke2 {[%clk 0:01:12.7]} 34...
fxe4 {[%clk 0:00:17.6]} 35. fxe4 {[%clk 0:01:12.9]} 35... a4 {[%clk 0:00:18.1]}
36. Kd3 {[%clk 0:01:13.1]} 36... b6 {[%clk 0:00:16.3]} 37. Kc2 {[%clk
0:00:47.5]} 37... Bf8 {[%clk 0:00:14.5]} 38. b3 {[%clk 0:00:43.6]} 38... axb3+
{[%clk 0:00:11.5]} 39. Kxb3 {[%clk 0:00:44.5]} 39... Be7 {[%clk 0:00:11]} 40.
Kc4 {[%clk 0:00:44.6]} 40... g5 {[%clk 0:00:11]} 41. Be5 {[%clk 0:00:42.4]}
41... g4 {[%clk 0:00:10.9]} 42. hxg4 {[%clk 0:00:42.7]} 42... hxg4 {[%clk
0:00:11.8]} 43. Kd3 {[%clk 0:00:42.8]} 43... Bd8 {[%clk 0:00:11.8]} 44. c4
{[%clk 0:00:41.4]} 44... Bg5 {[%clk 0:00:12]} 45. Bd4 {[%clk 0:00:40.6]} 45...
Kc7 {[%clk 0:00:11.9]} 46. c5 {[%clk 0:00:40.6]} 46... bxc5 {[%clk 0:00:11.8]}
47. Bxc5 {[%clk 0:00:41.5]} 47... Kb7 {[%clk 0:00:12.2]} 48. Kd4 {[%clk
0:00:41.6]} 48... Bf6+ {[%clk 0:00:12.6]} 49. Ke3 {[%clk 0:00:38.8]} 49... Kc7
{[%clk 0:00:13.5]} 50. Kf4 {[%clk 0:00:38.3]} 1-0

[Event "Early-Titled-Tuesday-Blitz-September-12-2023"]
[Site "Chess.com"]
[Date "2023.09.12"]
[Round "6"]
[White "Abund"]
[Black "vladgoncharov"]
[Result "1-0"]
[WhiteElo "2744"]
[BlackElo "2546"]
[TimeControl "180+1"]
[EndTime "9:06:27 PDT"]
[Termination "Abund won by resignation"]

1. e4 {[%clk 0:03:00.9]} 1... e6 {[%clk 0:02:59.7]} 2. d4 {[%clk 0:03:00.9]}
2... d5 {[%clk 0:02:59.8]} 3. Nd2 {[%clk 0:03:01.7]} 3... Be7 {[%clk 0:02:58.3]}
4. Bd3 {[%clk 0:02:57.6]} 4... c5 {[%clk 0:02:54.8]} 5. dxc5 {[%clk 0:02:56.1]}
5... Nf6 {[%clk 0:02:54.3]} 6. Qe2 {[%clk 0:02:53]} 6... O-O {[%clk 0:02:50.8]}
7. Ngf3 {[%clk 0:02:51]} 7... a5 {[%clk 0:02:50.8]} 8. c3 {[%clk 0:02:50.9]}
8... Na6 {[%clk 0:02:45.6]} 9. e5 {[%clk 0:02:49.4]} 9... Nd7 {[%clk 0:02:39]}
10. h4 {[%clk 0:02:48.9]} 10... g6 {[%clk 0:02:13.4]} 11. h5 {[%clk 0:02:37.8]}
11... Naxc5 {[%clk 0:02:12.7]} 12. Bc2 {[%clk 0:02:37]} 12... b6 {[%clk
0:02:09.1]} 13. Qe3 {[%clk 0:02:26.5]} 13... Ba6 {[%clk 0:01:40.2]} 14. hxg6
{[%clk 0:02:02.7]} 14... fxg6 {[%clk 0:01:28.2]} 15. Qh6 {[%clk 0:02:02.8]}
15... Rf7 {[%clk 0:01:28.3]} 16. Bxg6 {[%clk 0:02:02.9]} 16... Rg7 {[%clk
0:01:28.4]} 17. Bxh7+ {[%clk 0:02:02.8]} 17... Kf8 {[%clk 0:01:28.2]} 18. Nb3
{[%clk 0:01:32.5]} 18... Nd3+ {[%clk 0:01:24.7]} 19. Bxd3 {[%clk 0:01:27.7]}
19... Bxd3 {[%clk 0:01:23.5]} 20. Qxe6 {[%clk 0:01:18]} 20... Rh7 {[%clk
0:01:14.3]} 21. Rxh7 {[%clk 0:01:15.8]} 21... Bxh7 {[%clk 0:01:13.9]} 22. Bh6+
{[%clk 0:01:16.5]} 22... Ke8 {[%clk 0:01:12.9]} 23. Ng5 {[%clk 0:01:04.2]} 23...
Nc5 {[%clk 0:00:57.2]} 24. Qf7+ {[%clk 0:00:56.7]} 24... Kd7 {[%clk 0:00:57.2]}
25. Qxh7 {[%clk 0:00:52.3]} 25... Qh8 {[%clk 0:00:56.9]} 26. Nxc5+ {[%clk
0:00:49]} 26... bxc5 {[%clk 0:00:56.8]} 27. Qf5+ {[%clk 0:00:49.4]} 27... Kc7
{[%clk 0:00:56.8]} 28. Nf7 {[%clk 0:00:47.5]} 28... Qg8 {[%clk 0:00:51.9]} 29.
Ng5 {[%clk 0:00:41.5]} 29... Bxg5 {[%clk 0:00:45]} 30. Bxg5 {[%clk 0:00:40.1]}
30... Rf8 {[%clk 0:00:45]} 31. Bf6 {[%clk 0:00:34.1]} 31... Qxg2 {[%clk
0:00:44.5]} 32. O-O-O {[%clk 0:00:34]} 32... a4 {[%clk 0:00:41]} 33. Qh7+ {[%clk
0:00:29.7]} 33... Kb6 {[%clk 0:00:37.7]} 34. Qe7 {[%clk 0:00:29.5]} 34... Rc8
{[%clk 0:00:34.9]} 35. Qd6+ {[%clk 0:00:29.3]} 35... Rc6 {[%clk 0:00:35.1]} 36.
Qd8+ {[%clk 0:00:29.7]} 36... Kb7 {[%clk 0:00:34.8]} 37. Qxd5 {[%clk 0:00:30.4]}
37... Qxf2 {[%clk 0:00:27.2]} 38. Qd7+ {[%clk 0:00:30.8]} 38... Rc7 {[%clk
0:00:25.1]} 39. Qb5+ {[%clk 0:00:31.7]} 39... Ka7 {[%clk 0:00:24.9]} 40. Qa5+
{[%clk 0:00:32]} 40... Kb7 {[%clk 0:00:25.2]} 41. Qb5+ {[%clk 0:00:32.4]} 41...
Ka7 {[%clk 0:00:25.6]} 42. Qxa4+ {[%clk 0:00:33.1]} 42... Kb7 {[%clk 0:00:25.6]}
43. Qb5+ {[%clk 0:00:33.5]} 43... Ka7 {[%clk 0:00:25.8]} 44. Qa4+ {[%clk
0:00:32.8]} 44... Kb7 {[%clk 0:00:25.6]} 45. Qc2 {[%clk 0:00:32.5]} 45... Qf4+
{[%clk 0:00:24.8]} 46. Kb1 {[%clk 0:00:32.9]} 46... Qg4 {[%clk 0:00:22.8]} 47.
Qb3+ {[%clk 0:00:32.1]} 47... Ka7 {[%clk 0:00:22.9]} 48. Qc2 {[%clk 0:00:33]}
48... Kb7 {[%clk 0:00:22.7]} 49. a3 {[%clk 0:00:32.3]} 49... c4 {[%clk
0:00:21.1]} 50. Rd4 {[%clk 0:00:30.7]} 50... Qf3 {[%clk 0:00:19.2]} 51. Qe4+
{[%clk 0:00:30.7]} 51... Qxe4+ {[%clk 0:00:19]} 52. Rxe4 {[%clk 0:00:31.6]}
52... Kc6 {[%clk 0:00:19.1]} 53. Rd4 {[%clk 0:00:32.5]} 53... Rf7 {[%clk
0:00:18.8]} 54. Rxc4+ {[%clk 0:00:32.9]} 54... Kd5 {[%clk 0:00:19.5]} 55. Rd4+
{[%clk 0:00:33.6]} 55... Kc5 {[%clk 0:00:20]} 56. a4 {[%clk 0:00:34.4]} 56...
Rf8 {[%clk 0:00:18.1]} 57. Be7+ {[%clk 0:00:34]} 1-0

[Event "Early-Titled-Tuesday-Blitz-September-12-2023"]
[Site "Chess.com"]
[Date "2023.09.12"]
[Round "6"]
[White "Francisco_Ferrari"]
[Black "MokshAD1603"]
[Result "0-1"]
[WhiteElo "2192"]
[BlackElo "2593"]
[TimeControl "180+1"]
[EndTime "9:06:27 PDT"]
[Termination "MokshAD1603 won on time"]

1. e4 {[%clk 0:02:57.2]} 1... c6 {[%clk 0:02:47.5]} 2. d4 {[%clk 0:02:53.5]}
2... d5 {[%clk 0:02:47.5]} 3. exd5 {[%clk 0:02:54.1]} 3... cxd5 {[%clk
0:02:47.7]} 4. Bd3 {[%clk 0:02:53.7]} 4... Nc6 {[%clk 0:02:46]} 5. c3 {[%clk
0:02:54.3]} 5... e6 {[%clk 0:02:43.2]} 6. Nf3 {[%clk 0:02:54.1]} 6... Bd6 {[%clk
0:02:43.9]} 7. O-O {[%clk 0:02:54.3]} 7... Nge7 {[%clk 0:02:44.6]} 8. Re1 {[%clk
0:02:52.4]} 8... O-O {[%clk 0:02:45.2]} 9. Bxh7+ {[%clk 0:02:21.3]} 9... Kxh7
{[%clk 0:02:31.7]} 10. Ng5+ {[%clk 0:02:21.5]} 10... Kg6 {[%clk 0:02:32.3]} 11.
Qg4 {[%clk 0:02:11.9]} 11... f5 {[%clk 0:02:26.2]} 12. Qf3 {[%clk 0:01:58.9]}
12... Rh8 {[%clk 0:02:20.3]} 13. g3 {[%clk 0:01:47.4]} 13... Qg8 {[%clk
0:01:55.2]} 14. h4 {[%clk 0:01:41.3]} 14... Bd7 {[%clk 0:01:55.1]} 15. Bf4
{[%clk 0:01:22.6]} 15... Nc8 {[%clk 0:01:47.7]} 16. Nd2 {[%clk 0:01:18.1]} 16...
Be7 {[%clk 0:01:44.7]} 17. Re2 {[%clk 0:01:03.7]} 17... Bxg5 {[%clk 0:01:39.9]}
18. Bxg5 {[%clk 0:01:04.6]} 18... Nd6 {[%clk 0:01:40.2]} 19. Rae1 {[%clk
0:01:00.9]} 19... Re8 {[%clk 0:01:37.3]} 20. Qf4 {[%clk 0:00:53.4]} 20... Ne4
{[%clk 0:01:28.3]} 21. Nf3 {[%clk 0:00:51]} 21... Qh7 {[%clk 0:01:23.4]} 22. g4
{[%clk 0:00:45.1]} 22... fxg4 {[%clk 0:01:21.5]} 23. Qxg4 {[%clk 0:00:37.2]}
23... Qh5 {[%clk 0:01:19.4]} 24. Qg2 {[%clk 0:00:11.5]} 24... Kh7 {[%clk
0:01:18.5]} 25. Nh2 {[%clk 0:00:06.1]} 25... Rhf8 {[%clk 0:01:17.8]} 26. f3
{[%clk 0:00:06]} 26... Nxg5 {[%clk 0:01:17]} 27. hxg5 {[%clk 0:00:06.9]} 27...
Rf5 {[%clk 0:01:13.3]} 28. Ng4 {[%clk 0:00:06.2]} 28... Qxg5 {[%clk 0:01:12.3]}
29. Kf2 {[%clk 0:00:06.4]} 29... Ref8 {[%clk 0:01:10.8]} 30. Rh1+ {[%clk
0:00:07.3]} 30... Kg8 {[%clk 0:01:10.4]} 31. Qh3 {[%clk 0:00:07.8]} 31... Rxf3+
{[%clk 0:01:08.9]} 32. Qxf3 {[%clk 0:00:08.7]} 32... Qxg4 {[%clk 0:01:09.1]} 33.
Rh8+ {[%clk 0:00:07.5]} 33... Kxh8 {[%clk 0:01:08.5]} 34. Qxf8+ {[%clk
0:00:08.2]} 34... Kh7 {[%clk 0:01:09.2]} 35. Re3 {[%clk 0:00:08.9]} 35... Qf5+
{[%clk 0:01:08.6]} 36. Qxf5+ {[%clk 0:00:08.6]} 36... exf5 {[%clk 0:01:09.5]}
37. Kf3 {[%clk 0:00:07.7]} 37... g5 {[%clk 0:01:09.5]} 38. b4 {[%clk 0:00:07.5]}
38... b5 {[%clk 0:01:02.9]} 39. Re1 {[%clk 0:00:06.2]} 39... Kg6 {[%clk
0:01:02.7]} 40. a4 {[%clk 0:00:06.7]} 40... a6 {[%clk 0:00:56.2]} 41. axb5
{[%clk 0:00:06.8]} 41... axb5 {[%clk 0:00:57.1]} 42. Ra1 {[%clk 0:00:06.7]}
42... f4 {[%clk 0:00:56]} 43. Ra6 {[%clk 0:00:05.4]} 43... Kf5 {[%clk 0:00:55]}
44. Rb6 {[%clk 0:00:05.4]} 44... g4+ {[%clk 0:00:55.9]} 45. Kf2 {[%clk
0:00:05.7]} 45... Ke4 {[%clk 0:00:54.3]} 46. Rxb5 {[%clk 0:00:06.2]} 46... g3+
{[%clk 0:00:54.5]} 47. Kg2 {[%clk 0:00:06.8]} 47... Ke3 {[%clk 0:00:45.4]} 48.
Rxd5 {[%clk 0:00:06.9]} 48... Bg4 {[%clk 0:00:41]} 49. Rg5 {[%clk 0:00:04.6]}
49... f3+ {[%clk 0:00:36.3]} 50. Kxg3 {[%clk 0:00:04.6]} 50... f2 {[%clk
0:00:37.2]} 51. Kg2 {[%clk 0:00:01.9]} 51... Bh3+ {[%clk 0:00:36.9]} 0-1

[Event "Early-Titled-Tuesday-Blitz-September-12-2023"]
[Site "Chess.com"]
[Date "2023.09.12"]
[Round "6"]
[White "Romkachess"]
[Black "RamonManon0g"]
[Result "1-0"]
[WhiteElo "2529"]
[BlackElo "2302"]
[TimeControl "180+1"]
[EndTime "9:06:30 PDT"]
[Termination "Romkachess won by checkmate"]

1. e4 {[%clk 0:03:00.9]} 1... c5 {[%clk 0:02:59.9]} 2. Nf3 {[%clk 0:02:58.9]}
2... d6 {[%clk 0:03:00.2]} 3. d4 {[%clk 0:02:52.7]} 3... cxd4 {[%clk 0:03:01.1]}
4. Nxd4 {[%clk 0:02:53.4]} 4... Nf6 {[%clk 0:03:00.9]} 5. Nc3 {[%clk 0:02:53.8]}
5... a6 {[%clk 0:03:01]} 6. h3 {[%clk 0:02:54.3]} 6... e5 {[%clk 0:03:00.3]} 7.
Nde2 {[%clk 0:02:54.9]} 7... h5 {[%clk 0:03:00.8]} 8. Bg5 {[%clk 0:02:54.7]}
8... Be6 {[%clk 0:03:01.1]} 9. Bxf6 {[%clk 0:02:54.3]} 9... Qxf6 {[%clk
0:02:59.7]} 10. Nd5 {[%clk 0:02:55.2]} 10... Bxd5 {[%clk 0:02:59.1]} 11. Qxd5
{[%clk 0:02:54.4]} 11... Nc6 {[%clk 0:02:59.4]} 12. c3 {[%clk 0:02:52.9]} 12...
Be7 {[%clk 0:02:54.6]} 13. Ng3 {[%clk 0:02:43.5]} 13... g6 {[%clk 0:02:53.9]}
14. Bc4 {[%clk 0:02:38.7]} 14... O-O {[%clk 0:02:49]} 15. O-O {[%clk 0:02:32.2]}
15... Bd8 {[%clk 0:02:28.4]} 16. Rad1 {[%clk 0:02:15.3]} 16... Bc7 {[%clk
0:02:25.7]} 17. Bb3 {[%clk 0:02:08.7]} 17... Rad8 {[%clk 0:02:23.2]} 18. Qd2
{[%clk 0:01:53.6]} 18... Ne7 {[%clk 0:02:10]} 19. Qh6 {[%clk 0:01:37.5]} 19...
Bb6 {[%clk 0:01:59.5]} 20. Nxh5 {[%clk 0:01:33.6]} 20... Qh8 {[%clk 0:01:57.8]}
21. Qxh8+ {[%clk 0:01:29.8]} 21... Kxh8 {[%clk 0:01:58.7]} 22. Nf6 {[%clk
0:01:27.7]} 22... Kg7 {[%clk 0:01:45.4]} 23. Nd5 {[%clk 0:01:25.4]} 23... Nxd5
{[%clk 0:01:44.9]} 24. Rxd5 {[%clk 0:01:20.4]} 24... Kf6 {[%clk 0:01:40.5]} 25.
Kh2 {[%clk 0:01:16]} 25... Ke7 {[%clk 0:01:39.6]} 26. f4 {[%clk 0:01:00.5]}
26... f6 {[%clk 0:01:30]} 27. fxe5 {[%clk 0:00:35.4]} 27... fxe5 {[%clk
0:01:30.9]} 28. Rdd1 {[%clk 0:00:32.4]} 28... Be3 {[%clk 0:01:28.9]} 29. Bd5
{[%clk 0:00:28.9]} 29... b6 {[%clk 0:01:28.3]} 30. g3 {[%clk 0:00:28.4]} 30...
a5 {[%clk 0:01:23.2]} 31. b3 {[%clk 0:00:25.3]} 31... Rc8 {[%clk 0:01:21.9]} 32.
c4 {[%clk 0:00:25.1]} 32... Rcd8 {[%clk 0:01:16.1]} 33. Kg2 {[%clk 0:00:25.4]}
33... Rxf1 {[%clk 0:00:57.3]} 34. Rxf1 {[%clk 0:00:23.4]} 34... Rf8 {[%clk
0:00:54.3]} 35. Rxf8 {[%clk 0:00:22.2]} 35... Kxf8 {[%clk 0:00:55.2]} 36. h4
{[%clk 0:00:22.9]} 36... Kg7 {[%clk 0:00:55.1]} 37. g4 {[%clk 0:00:20.3]} 37...
g5 {[%clk 0:00:44.2]} 38. h5 {[%clk 0:00:15.7]} 38... Kh6 {[%clk 0:00:41.3]} 39.
Kf3 {[%clk 0:00:16.2]} 39... Bg1 {[%clk 0:00:39.3]} 40. Ke2 {[%clk 0:00:17.1]}
40... Bc5 {[%clk 0:00:39]} 41. Kd3 {[%clk 0:00:18]} 41... Bd4 {[%clk 0:00:39.3]}
42. Kc2 {[%clk 0:00:14.5]} 42... Bc5 {[%clk 0:00:39.6]} 43. Kb2 {[%clk
0:00:15.1]} 43... Bd4+ {[%clk 0:00:39.7]} 44. Ka3 {[%clk 0:00:14.7]} 44... Bc5+
{[%clk 0:00:40.3]} 45. Ka4 {[%clk 0:00:15.2]} 45... Bd4 {[%clk 0:00:40.2]} 46.
a3 {[%clk 0:00:15.6]} 46... Bc5 {[%clk 0:00:39.6]} 47. b4 {[%clk 0:00:15.9]}
47... axb4 {[%clk 0:00:40.5]} 48. axb4 {[%clk 0:00:16.8]} 48... Bd4 {[%clk
0:00:40.6]} 49. Kb5 {[%clk 0:00:17.6]} 49... Be3 {[%clk 0:00:40.6]} 50. Kc6
{[%clk 0:00:17.7]} 50... Bd2 {[%clk 0:00:38.9]} 51. Kxd6 {[%clk 0:00:17.3]}
51... Bxb4+ {[%clk 0:00:38.5]} 52. Kxe5 {[%clk 0:00:17.7]} 52... Bc5 {[%clk
0:00:37.8]} 53. Kf6 {[%clk 0:00:17.3]} 53... Bd4+ {[%clk 0:00:38]} 54. e5 {[%clk
0:00:17.9]} 54... Bc3 {[%clk 0:00:38.1]} 55. Be4 {[%clk 0:00:17.5]} 55... Bd4
{[%clk 0:00:37.2]} 56. Kf5 {[%clk 0:00:16.1]} 56... Bc3 {[%clk 0:00:36.1]} 57.
e6 {[%clk 0:00:17]} 57... Bb4 {[%clk 0:00:34.5]} 58. Kf6 {[%clk 0:00:16.7]}
58... Bc3+ {[%clk 0:00:33.3]} 59. Kf7 {[%clk 0:00:17.6]} 59... Bb4 {[%clk
0:00:33.2]} 60. e7 {[%clk 0:00:18]} 60... Bxe7 {[%clk 0:00:33.5]} 61. Kxe7
{[%clk 0:00:18.9]} 61... b5 {[%clk 0:00:34]} 62. cxb5 {[%clk 0:00:19.8]} 62...
Kg7 {[%clk 0:00:32.5]} 63. b6 {[%clk 0:00:20.7]} 63... Kh6 {[%clk 0:00:33]} 64.
b7 {[%clk 0:00:21.6]} 64... Kg7 {[%clk 0:00:33.6]} 65. b8=Q {[%clk 0:00:22.5]}
65... Kh6 {[%clk 0:00:33.7]} 66. Qh8# {[%clk 0:00:19.2]} 1-0

[Event "Early-Titled-Tuesday-Blitz-September-12-2023"]
[Site "Chess.com"]
[Date "2023.09.12"]
[Round "6"]
[White "Alexei_Gubajdullin"]
[Black "secretsuperstar7"]
[Result "1-0"]
[WhiteElo "2623"]
[BlackElo "2418"]
[TimeControl "180+1"]
[EndTime "9:06:31 PDT"]
[Termination "Alexei_Gubajdullin won by checkmate"]

1. d4 {[%clk 0:02:57.4]} 1... Nf6 {[%clk 0:02:59.5]} 2. Nf3 {[%clk 0:02:57.2]}
2... d5 {[%clk 0:02:59.2]} 3. Bf4 {[%clk 0:02:57.3]} 3... c5 {[%clk 0:02:56.2]}
4. e3 {[%clk 0:02:57.3]} 4... Nc6 {[%clk 0:02:56.2]} 5. Nbd2 {[%clk 0:02:55.4]}
5... e6 {[%clk 0:02:54.6]} 6. c3 {[%clk 0:02:54.7]} 6... Nh5 {[%clk 0:02:52.7]}
7. Bg5 {[%clk 0:02:53]} 7... f6 {[%clk 0:02:52.4]} 8. Bh4 {[%clk 0:02:51.8]}
8... g6 {[%clk 0:02:50.8]} 9. g4 {[%clk 0:02:47.7]} 9... Ng7 {[%clk 0:02:50.1]}
10. Bb5 {[%clk 0:02:45.4]} 10... Be7 {[%clk 0:02:47.7]} 11. Qa4 {[%clk
0:02:38.5]} 11... Bd7 {[%clk 0:02:46.7]} 12. dxc5 {[%clk 0:02:27]} 12... Bxc5
{[%clk 0:02:37.6]} 13. Nd4 {[%clk 0:02:26.8]} 13... O-O {[%clk 0:02:14.6]} 14.
Nxc6 {[%clk 0:02:23.6]} 14... bxc6 {[%clk 0:02:14.8]} 15. Bxc6 {[%clk
0:02:23.7]} 15... Bxc6 {[%clk 0:02:15.1]} 16. Qxc6 {[%clk 0:02:23.5]} 16... Rc8
{[%clk 0:02:14.9]} 17. Qa6 {[%clk 0:02:19.9]} 17... Rb8 {[%clk 0:02:12]} 18. Nb3
{[%clk 0:02:19]} 18... Bb6 {[%clk 0:02:06.4]} 19. Bg3 {[%clk 0:02:12.2]} 19...
Rc8 {[%clk 0:02:06.4]} 20. O-O-O {[%clk 0:02:09.2]} 20... Qe7 {[%clk 0:02:02.2]}
21. Kb1 {[%clk 0:02:00.5]} 21... Rc4 {[%clk 0:02:00.4]} 22. h3 {[%clk
0:01:59.6]} 22... Rfc8 {[%clk 0:01:25.9]} 23. Nd2 {[%clk 0:01:58.3]} 23... R4c5
{[%clk 0:01:24.4]} 24. e4 {[%clk 0:01:51.7]} 24... d4 {[%clk 0:01:15.3]} 25.
cxd4 {[%clk 0:01:48.4]} 25... Rc2 {[%clk 0:01:15]} 26. Qd3 {[%clk 0:01:44.6]}
26... Qb4 {[%clk 0:01:03.4]} 27. Nb3 {[%clk 0:01:37.4]} 27... a5 {[%clk
0:01:03.2]} 28. Rc1 {[%clk 0:01:37.4]} 28... Rxc1+ {[%clk 0:00:59.3]} 29. Rxc1
{[%clk 0:01:26.9]} 29... Rxc1+ {[%clk 0:00:58.8]} 30. Nxc1 {[%clk 0:01:23.1]}
30... Bxd4 {[%clk 0:00:58.7]} 31. Qb3 {[%clk 0:01:20]} 31... Kf7 {[%clk
0:00:45.5]} 32. Qxb4 {[%clk 0:01:18.5]} 32... axb4 {[%clk 0:00:46.4]} 33. Nd3
{[%clk 0:01:18.5]} 33... b3 {[%clk 0:00:44.3]} 34. a3 {[%clk 0:01:14.1]} 34...
e5 {[%clk 0:00:44.1]} 35. Nc1 {[%clk 0:01:13.2]} 35... f5 {[%clk 0:00:40.1]} 36.
f3 {[%clk 0:01:08.6]} 36... f4 {[%clk 0:00:31.6]} 37. Be1 {[%clk 0:01:07.7]}
37... Ne6 {[%clk 0:00:31.2]} 38. Nxb3 {[%clk 0:01:07.5]} 38... Ng5 {[%clk
0:00:30.4]} 39. Nxd4 {[%clk 0:01:04.5]} 39... exd4 {[%clk 0:00:31.3]} 40. Bd2
{[%clk 0:01:04.3]} 40... Nxf3 {[%clk 0:00:22.4]} 41. Bxf4 {[%clk 0:01:04]} 41...
g5 {[%clk 0:00:22.7]} 42. Bg3 {[%clk 0:01:00.4]} 42... d3 {[%clk 0:00:22.3]} 43.
a4 {[%clk 0:00:58.4]} 43... Nd2+ {[%clk 0:00:13.9]} 44. Kc1 {[%clk 0:00:57.5]}
44... Nxe4 {[%clk 0:00:13.4]} 45. Be1 {[%clk 0:00:57.6]} 45... Nc5 {[%clk
0:00:10.5]} 46. a5 {[%clk 0:00:57.2]} 46... Ke6 {[%clk 0:00:09.6]} 47. b4 {[%clk
0:00:56.6]} 47... Nb3+ {[%clk 0:00:08.9]} 48. Kd1 {[%clk 0:00:56]} 48... Kd5
{[%clk 0:00:08.2]} 49. a6 {[%clk 0:00:51.6]} 49... Kc6 {[%clk 0:00:07]} 50. b5+
{[%clk 0:00:51.5]} 50... Kb6 {[%clk 0:00:05.2]} 51. Bf2+ {[%clk 0:00:51.2]}
51... Kc7 {[%clk 0:00:05.1]} 52. b6+ {[%clk 0:00:50.9]} 52... Kb8 {[%clk
0:00:04.6]} 53. Bg3+ {[%clk 0:00:50.9]} 53... Ka8 {[%clk 0:00:03.1]} 54. b7+
{[%clk 0:00:50.8]} 54... Ka7 {[%clk 0:00:03.6]} 55. b8=Q+ {[%clk 0:00:51.1]}
55... Kxa6 {[%clk 0:00:04.2]} 56. Qxb3 {[%clk 0:00:51]} 56... d2 {[%clk
0:00:04.7]} 57. Bc7 {[%clk 0:00:50]} 57... h5 {[%clk 0:00:03]} 58. Qb6# {[%clk
0:00:49.6]} 1-0